[Event "Titled Tuesday Blitz November 01 Late 2022"]
[White "Deac, Bogdan-Daniel"]
[Black "Sohal, Tanraj"]
[WhiteFideId "1226380"]
[BlackFideId "2608499"]
[WhiteElo "2648"]
[BlackElo "2200"]
[Result "1-0"]
[Round "01"]
[TimeControl "180+1"]
[Date "2022.11.01"]
[WhiteClock "0:00:07"]
[BlackClock "0:01:11"]

1. d4 {[%clk 0:03:00]}  d5 {[%clk 0:02:58]} 2. Nf3 {[%clk 0:02:58]}  c6 {[%clk 0:02:58]} 3. Bf4 {[%clk 0:02:51]}  Nf6 {[%clk 0:02:59]} 4. e3 {[%clk 0:02:51]}  Bf5 {[%clk 0:02:59]} 5. c4 {[%clk 0:02:50]}  Qb6 {[%clk 0:02:57]} 6. Qc1 {[%clk 0:02:47]}  e6 {[%clk 0:02:55]} 7. Nc3 {[%clk 0:02:47]}  Ne4 {[%clk 0:02:52]} 8. Be2 {[%clk 0:02:41]}  Be7 {[%clk 0:02:49]} 9. O-O {[%clk 0:02:40]}  O-O {[%clk 0:02:49]} 10. c5 {[%clk 0:02:36]}  Qd8 {[%clk 0:02:48]} 11. b4 {[%clk 0:02:29]}  Nd7 {[%clk 0:02:38]} 12. Nxe4 {[%clk 0:02:28]}  Bxe4 {[%clk 0:02:38]} 13. Nd2 {[%clk 0:02:28]}  Bg6 {[%clk 0:02:38]} 14. b5 {[%clk 0:02:21]}  f6 {[%clk 0:02:35]} 15. bxc6 {[%clk 0:02:04]}  bxc6 {[%clk 0:02:35]} 16. Qa3 {[%clk 0:02:04]}  e5 {[%clk 0:02:35]} 17. Bg3 {[%clk 0:02:04]}  Bf7 {[%clk 0:02:33]} 18. Rab1 {[%clk 0:01:58]}  Re8 {[%clk 0:02:29]} 19. Bg4 {[%clk 0:01:33]}  Bf8 {[%clk 0:02:21]} 20. Qa6 {[%clk 0:01:07]}  Be6 {[%clk 0:02:19]} 21. Bxe6+ {[%clk 0:00:59]}  Rxe6 {[%clk 0:02:19]} 22. Nf3 {[%clk 0:00:59]}  Qc8 {[%clk 0:02:13]} 23. Qxc8 {[%clk 0:00:50]}  Rxc8 {[%clk 0:02:13]} 24. Rb7 {[%clk 0:00:51]}  Re7 {[%clk 0:02:01]} 25. Rfb1 {[%clk 0:00:43]}  exd4 {[%clk 0:02:01]} 26. exd4 {[%clk 0:00:42]}  g5 {[%clk 0:01:57]} 27. Rxa7 {[%clk 0:00:30]}  h6 {[%clk 0:01:51]} 28. h3 {[%clk 0:00:20]}  Bg7 {[%clk 0:01:48]} 29. Rbb7 {[%clk 0:00:16]}  Rd8 {[%clk 0:01:45]} 30. Bd6 {[%clk 0:00:12]}  Rf7 {[%clk 0:01:44]} 31. Rc7 {[%clk 0:00:12]}  f5 {[%clk 0:01:42]} 32. Rxc6 {[%clk 0:00:12]}  Nf8 {[%clk 0:01:39]} 33. Rxf7 {[%clk 0:00:09]}  Kxf7 {[%clk 0:01:37]} 34. Ne5+ {[%clk 0:00:09]}  Bxe5 {[%clk 0:01:37]} 35. Bxe5 {[%clk 0:00:09]}  Ne6 {[%clk 0:01:37]} 36. Rd6 {[%clk 0:00:09]}  Ra8 {[%clk 0:01:33]} 37. Rxd5 {[%clk 0:00:09]}  Rxa2 {[%clk 0:01:33]} 38. Rd7+ {[%clk 0:00:09]}  Kg6 {[%clk 0:01:32]} 39. Rd6 {[%clk 0:00:09]}  Kf7 {[%clk 0:01:30]} 40. c6 {[%clk 0:00:10]}  Ra1+ {[%clk 0:01:28]} 41. Kh2 {[%clk 0:00:09]}  Rc1 {[%clk 0:01:29]} 42. d5 {[%clk 0:00:09]}  Nc5 {[%clk 0:01:28]} 43. c7 {[%clk 0:00:09]}  Ne4 {[%clk 0:01:23]} 44. Rc6 {[%clk 0:00:08]}  Rxc6 {[%clk 0:01:22]} 45. dxc6 {[%clk 0:00:08]}  Kg6 {[%clk 0:01:20]} 46. c8=Q {[%clk 0:00:08]}  Nc5 {[%clk 0:01:17]} 47. Qe8+ {[%clk 0:00:08]}  Kh7 {[%clk 0:01:16]} 48. c7 {[%clk 0:00:07]}  Ne6 {[%clk 0:01:11]} 49. Qxe6 {[%clk 0:00:07]} 1-0


[Site "https://www.chess.com"]

[Event "Titled Tuesday Blitz November 01 Late 2022"]
[White "Djokic, Mihailo"]
[Black "Shapiro, Daniel"]
[WhiteFideId "976440"]
[BlackFideId "2001780"]
[WhiteElo "2315"]
[BlackElo "2277"]
[Result "1-0"]
[Round "01"]
[TimeControl "180+1"]
[Date "2022.11.02"]
[WhiteClock "0:00:02"]
[BlackClock "0:00:02"]

1. e4 {[%clk 0:03:00]}  e5 {[%clk 0:02:59]} 2. Nf3 {[%clk 0:03:00]}  Nc6 {[%clk 0:02:59]} 3. Nc3 {[%clk 0:02:59]}  Nf6 {[%clk 0:02:58]} 4. Bb5 {[%clk 0:02:59]}  Bb4 {[%clk 0:02:56]} 5. O-O {[%clk 0:02:59]}  d6 {[%clk 0:02:47]} 6. d3 {[%clk 0:02:58]}  O-O {[%clk 0:02:42]} 7. Bg5 {[%clk 0:02:55]}  Bxc3 {[%clk 0:02:42]} 8. bxc3 {[%clk 0:02:55]}  Qe7 {[%clk 0:02:42]} 9. Re1 {[%clk 0:02:54]}  Nd8 {[%clk 0:02:37]} 10. d4 {[%clk 0:02:54]}  Ne6 {[%clk 0:02:27]} 11. Bh4 {[%clk 0:02:50]}  c5 {[%clk 0:02:26]} 12. dxe5 {[%clk 0:02:48]}  dxe5 {[%clk 0:02:26]} 13. Nxe5 {[%clk 0:02:48]}  Nc7 {[%clk 0:02:26]} 14. Nd3 {[%clk 0:01:11]}  Nxb5 {[%clk 0:01:56]} 15. e5 {[%clk 0:01:09]}  Bf5 {[%clk 0:01:13]} 16. exf6 {[%clk 0:01:07]}  Qd6 {[%clk 0:01:09]} 17. fxg7 {[%clk 0:01:00]}  Rfe8 {[%clk 0:01:07]} 18. Qf3 {[%clk 0:00:51]}  Bg6 {[%clk 0:00:51]} 19. Qxb7 {[%clk 0:00:43]}  Nxc3 {[%clk 0:00:51]} 20. Bg3 {[%clk 0:00:38]}  Qd4 {[%clk 0:00:37]} 21. h4 {[%clk 0:00:22]}  Ne2+ {[%clk 0:00:30]} 22. Kh2 {[%clk 0:00:17]}  Nxg3 {[%clk 0:00:28]} 23. fxg3 {[%clk 0:00:14]}  Bxd3 {[%clk 0:00:23]} 24. cxd3 {[%clk 0:00:14]}  Qxd3 {[%clk 0:00:21]} 25. Rxe8+ {[%clk 0:00:10]}  Rxe8 {[%clk 0:00:20]} 26. Qxa7 {[%clk 0:00:10]}  c4 {[%clk 0:00:20]} 27. Qa4 {[%clk 0:00:07]}  Rc8 {[%clk 0:00:15]} 28. Qa6 {[%clk 0:00:05]}  Qd7 {[%clk 0:00:11]} 29. Rc1 {[%clk 0:00:04]}  c3 {[%clk 0:00:10]} 30. Qa3 {[%clk 0:00:02]}  Qc7 {[%clk 0:00:10]} 31. Qb3 {[%clk 0:00:01]}  c2 {[%clk 0:00:09]} 32. Qb2 {[%clk 0:00:02]}  Qc4 {[%clk 0:00:07]} 33. a3 {[%clk 0:00:02]}  Qc5 {[%clk 0:00:04]} 34. Kh1 {[%clk 0:00:01]}  Qc6 {[%clk 0:00:03]} 35. Kh2 {[%clk 0:00:02]}  Rc7 {[%clk 0:00:03]} 36. Qb4 {[%clk 0:00:02]}  Rc8 {[%clk 0:00:02]} 37. Qe7 {[%clk 0:00:02]} 1-0


[Site "https://www.chess.com"]

[Event "Titled Tuesday Blitz November 01 Late 2022"]
[White "Ernst, Sipke"]
[Black "Ismayil, Malak"]
[WhiteFideId "1004689"]
[BlackFideId "13412604"]
[WhiteElo "2438"]
[BlackElo "1879"]
[Result "1/2-1/2"]
[Round "01"]
[TimeControl "180+1"]
[Date "2022.11.02"]
[WhiteClock "0:00:24"]
[BlackClock "0:00:06"]

1. Nf3 {[%clk 0:03:00]}  Nf6 {[%clk 0:02:55]} 2. Nc3 {[%clk 0:02:57]}  g6 {[%clk 0:02:55]} 3. e4 {[%clk 0:02:56]}  Bg7 {[%clk 0:02:54]} 4. d4 {[%clk 0:02:56]}  d6 {[%clk 0:02:54]} 5. Bg5 {[%clk 0:02:55]}  Nc6 {[%clk 0:02:53]} 6. Qd2 {[%clk 0:02:53]}  O-O {[%clk 0:02:52]} 7. O-O-O {[%clk 0:02:51]}  a6 {[%clk 0:02:47]} 8. Bh6 {[%clk 0:02:42]}  b5 {[%clk 0:02:41]} 9. Bxg7 {[%clk 0:02:31]}  Kxg7 {[%clk 0:02:42]} 10. Bd3 {[%clk 0:02:31]}  Bg4 {[%clk 0:02:39]} 11. e5 {[%clk 0:02:20]}  dxe5 {[%clk 0:02:34]} 12. dxe5 {[%clk 0:02:19]}  Nh5 {[%clk 0:02:28]} 13. Be4 {[%clk 0:02:19]}  Qxd2+ {[%clk 0:01:56]} 14. Rxd2 {[%clk 0:02:19]}  Bxf3 {[%clk 0:01:55]} 15. Bxf3 {[%clk 0:02:18]}  Nxe5 {[%clk 0:01:55]} 16. Bxa8 {[%clk 0:02:18]}  Rxa8 {[%clk 0:01:56]} 17. Re2 {[%clk 0:02:17]}  f6 {[%clk 0:01:43]} 18. g3 {[%clk 0:02:14]}  Kf7 {[%clk 0:01:28]} 19. Rd1 {[%clk 0:02:14]}  Ng7 {[%clk 0:01:07]} 20. f4 {[%clk 0:02:12]}  Nc6 {[%clk 0:01:07]} 21. Rd7 {[%clk 0:02:12]}  Ne6 {[%clk 0:01:07]} 22. Rd3 {[%clk 0:01:45]}  Ncd4 {[%clk 0:00:53]} 23. Re1 {[%clk 0:01:46]}  c5 {[%clk 0:00:51]} 24. Rde3 {[%clk 0:01:41]}  Rd8 {[%clk 0:00:47]} 25. Ne2 {[%clk 0:01:39]}  Rd6 {[%clk 0:00:32]} 26. Rd3 {[%clk 0:01:22]}  c4 {[%clk 0:00:28]} 27. Re3 {[%clk 0:01:22]}  Nf5 {[%clk 0:00:27]} 28. Rf3 {[%clk 0:01:20]}  Nc5 {[%clk 0:00:26]} 29. Nc3 {[%clk 0:01:18]}  b4 {[%clk 0:00:22]} 30. Nd1 {[%clk 0:01:13]}  a5 {[%clk 0:00:16]} 31. Rf2 {[%clk 0:01:13]}  Nd4 {[%clk 0:00:15]} 32. Re3 {[%clk 0:01:02]}  a4 {[%clk 0:00:13]} 33. a3 {[%clk 0:00:56]}  b3 {[%clk 0:00:13]} 34. cxb3 {[%clk 0:00:52]}  Nd3+ {[%clk 0:00:10]} 35. Rxd3 {[%clk 0:00:52]}  cxd3 {[%clk 0:00:11]} 36. bxa4 {[%clk 0:00:48]}  Nb3+ {[%clk 0:00:09]} 37. Kb1 {[%clk 0:00:48]}  Re6 {[%clk 0:00:08]} 38. Ka2 {[%clk 0:00:38]}  Nc1+ {[%clk 0:00:05]} 39. Kb1 {[%clk 0:00:38]}  Nb3 {[%clk 0:00:06]} 40. Ka2 {[%clk 0:00:24]}  Nc1+ {[%clk 0:00:06]} 41. Kb1 {[%clk 0:00:24]}  Nb3 {[%clk 0:00:06]} 1/2-1/2


[Site "https://www.chess.com"]

[Event "Titled Tuesday Blitz November 01 Late 2022"]
[White "Estrada Nieto, Julian"]
[Black "Drygalov, Sergey"]
[WhiteFideId "5101018"]
[BlackFideId "24171743"]
[WhiteElo "2252"]
[BlackElo "2528"]
[Result "0-1"]
[Round "01"]
[TimeControl "180+1"]
[Date "2022.11.02"]
[WhiteClock "0:00:03"]
[BlackClock "0:00:09"]

1. e4 {[%clk 0:03:00]}  c5 {[%clk 0:03:00]} 2. Nf3 {[%clk 0:03:00]}  d6 {[%clk 0:03:00]} 3. Bb5+ {[%clk 0:02:59]}  Nd7 {[%clk 0:03:00]} 4. d4 {[%clk 0:02:58]}  cxd4 {[%clk 0:03:00]} 5. Qxd4 {[%clk 0:02:59]}  a6 {[%clk 0:02:59]} 6. Bxd7+ {[%clk 0:03:00]}  Bxd7 {[%clk 0:02:59]} 7. Nc3 {[%clk 0:03:00]}  e5 {[%clk 0:02:59]} 8. Qd3 {[%clk 0:02:59]}  Rc8 {[%clk 0:02:58]} 9. a4 {[%clk 0:02:55]}  Qc7 {[%clk 0:02:58]} 10. Nd2 {[%clk 0:02:48]}  Nf6 {[%clk 0:02:52]} 11. Nf1 {[%clk 0:02:48]}  h6 {[%clk 0:02:52]} 12. Ne3 {[%clk 0:02:47]}  Be6 {[%clk 0:02:52]} 13. O-O {[%clk 0:02:46]}  Be7 {[%clk 0:02:52]} 14. Rd1 {[%clk 0:02:45]}  O-O {[%clk 0:02:52]} 15. Bd2 {[%clk 0:02:31]}  Rfd8 {[%clk 0:02:47]} 16. Be1 {[%clk 0:02:27]}  Qc5 {[%clk 0:02:43]} 17. a5 {[%clk 0:02:23]}  Qc6 {[%clk 0:02:41]} 18. f3 {[%clk 0:02:07]}  Rd7 {[%clk 0:02:30]} 19. Bf2 {[%clk 0:02:03]}  Bf8 {[%clk 0:02:26]} 20. Bh4 {[%clk 0:01:56]}  g5 {[%clk 0:02:26]} 21. Bf2 {[%clk 0:01:56]}  Qc7 {[%clk 0:02:20]} 22. Rd2 {[%clk 0:01:43]}  Bc4 {[%clk 0:01:58]} 23. Nxc4 {[%clk 0:01:41]}  Qxc4 {[%clk 0:01:59]} 24. Ra4 {[%clk 0:01:34]}  Qxd3 {[%clk 0:01:51]} 25. Rxd3 {[%clk 0:01:34]}  Be7 {[%clk 0:01:52]} 26. Bb6 {[%clk 0:01:23]}  Nh5 {[%clk 0:01:46]} 27. g3 {[%clk 0:01:23]}  Nf6 {[%clk 0:01:44]} 28. g4 {[%clk 0:01:16]}  Nh7 {[%clk 0:01:37]} 29. Rd2 {[%clk 0:01:09]}  Nf8 {[%clk 0:01:37]} 30. Nd5 {[%clk 0:01:05]}  Ne6 {[%clk 0:01:35]} 31. Rb4 {[%clk 0:00:59]}  Kg7 {[%clk 0:01:28]} 32. Be3 {[%clk 0:00:58]}  Bd8 {[%clk 0:01:28]} 33. Bb6 {[%clk 0:00:56]}  Be7 {[%clk 0:01:22]} 34. c3 {[%clk 0:00:52]}  Rc6 {[%clk 0:01:08]} 35. Be3 {[%clk 0:00:48]}  Bd8 {[%clk 0:01:08]} 36. Bb6 {[%clk 0:00:48]}  Bxb6+ {[%clk 0:01:07]} 37. Nxb6 {[%clk 0:00:46]}  Rd8 {[%clk 0:01:03]} 38. Nc4 {[%clk 0:00:45]}  Kf6 {[%clk 0:00:43]} 39. Ne3 {[%clk 0:00:34]}  Rd7 {[%clk 0:00:29]} 40. Nd5+ {[%clk 0:00:31]}  Kg7 {[%clk 0:00:28]} 41. Ne3 {[%clk 0:00:32]}  Kf6 {[%clk 0:00:18]} 42. Nf5 {[%clk 0:00:29]}  Rc5 {[%clk 0:00:12]} 43. Rxd6 {[%clk 0:00:21]}  Rxd6 {[%clk 0:00:12]} 44. Nxd6 {[%clk 0:00:21]}  Rxa5 {[%clk 0:00:13]} 45. Rxb7 {[%clk 0:00:21]}  Ra1+ {[%clk 0:00:13]} 46. Kf2 {[%clk 0:00:21]}  Nf4 {[%clk 0:00:14]} 47. Rxf7+ {[%clk 0:00:20]}  Ke6 {[%clk 0:00:14]} 48. Rh7 {[%clk 0:00:17]}  Kxd6 {[%clk 0:00:15]} 49. Rxh6+ {[%clk 0:00:17]}  Kc5 {[%clk 0:00:15]} 50. h4 {[%clk 0:00:15]}  gxh4 {[%clk 0:00:14]} 51. Rxh4 {[%clk 0:00:14]}  Ra2 {[%clk 0:00:14]} 52. Kf1 {[%clk 0:00:13]}  Rxb2 {[%clk 0:00:14]} 53. Rh6 {[%clk 0:00:13]}  a5 {[%clk 0:00:12]} 54. Rh8 {[%clk 0:00:12]}  Rb6 {[%clk 0:00:09]} 55. Rc8+ {[%clk 0:00:11]}  Kb5 {[%clk 0:00:09]} 56. Re8 {[%clk 0:00:11]}  a4 {[%clk 0:00:08]} 57. Rxe5+ {[%clk 0:00:11]}  Kc4 {[%clk 0:00:09]} 58. Ra5 {[%clk 0:00:11]}  Kb3 {[%clk 0:00:09]} 59. g5 {[%clk 0:00:10]}  a3 {[%clk 0:00:10]} 60. Kf2 {[%clk 0:00:10]}  a2 {[%clk 0:00:10]} 61. Kg3 {[%clk 0:00:10]}  Ne2+ {[%clk 0:00:10]} 62. Kg4 {[%clk 0:00:10]}  Nxc3 {[%clk 0:00:11]} 63. Rxa2 {[%clk 0:00:08]}  Nxa2 {[%clk 0:00:11]} 64. f4 {[%clk 0:00:08]}  Kc4 {[%clk 0:00:12]} 65. f5 {[%clk 0:00:08]}  Kd4 {[%clk 0:00:12]} 66. g6 {[%clk 0:00:08]}  Ke5 {[%clk 0:00:08]} 67. g7 {[%clk 0:00:07]}  Rb8 {[%clk 0:00:08]} 68. Kg5 {[%clk 0:00:07]}  Nc3 {[%clk 0:00:09]} 69. f6 {[%clk 0:00:06]}  Nxe4+ {[%clk 0:00:10]} 70. Kg6 {[%clk 0:00:06]}  Nxf6 {[%clk 0:00:11]} 71. Kf7 {[%clk 0:00:05]}  Rg8 {[%clk 0:00:11]} 72. Kg6 {[%clk 0:00:03]}  Ke6 {[%clk 0:00:12]} 73. Kg5 {[%clk 0:00:03]}  Rxg7+ {[%clk 0:00:12]} 74. Kf4 {[%clk 0:00:04]}  Rg4+ {[%clk 0:00:12]} 75. Kf3 {[%clk 0:00:04]}  Ke5 {[%clk 0:00:12]} 76. Ke3 {[%clk 0:00:05]}  Nd5+ {[%clk 0:00:12]} 77. Kf2 {[%clk 0:00:06]}  Ke4 {[%clk 0:00:12]} 78. Ke2 {[%clk 0:00:06]}  Rg2+ {[%clk 0:00:12]} 79. Kf1 {[%clk 0:00:07]}  Kf3 {[%clk 0:00:11]} 80. Ke1 {[%clk 0:00:07]}  Ke3 {[%clk 0:00:10]} 81. Kf1 {[%clk 0:00:07]}  Rg3 {[%clk 0:00:10]} 82. Ke1 {[%clk 0:00:03]}  Rg1# {[%clk 0:00:09]} 0-1


[Site "https://www.chess.com"]

[Event "Titled Tuesday Blitz November 01 Late 2022"]
[White "Galchenko, Matvey"]
[Black "Jaskolka, Tomasz"]
[WhiteFideId "24175480"]
[BlackFideId "1170791"]
[WhiteElo "2423"]
[BlackElo "2126"]
[Result "1-0"]
[Round "01"]
[TimeControl "180+1"]
[Date "2022.11.02"]
[WhiteClock "0:00:29"]
[BlackClock "0:00:02"]

1. f4 {[%clk 0:02:59]}  d5 {[%clk 0:02:53]} 2. Nf3 {[%clk 0:02:59]}  c6 {[%clk 0:02:53]} 3. g3 {[%clk 0:02:59]}  Bg4 {[%clk 0:02:53]} 4. Bg2 {[%clk 0:02:59]}  Qb6 {[%clk 0:02:52]} 5. d4 {[%clk 0:02:59]}  e6 {[%clk 0:02:51]} 6. O-O {[%clk 0:02:59]}  Bxf3 {[%clk 0:02:51]} 7. Bxf3 {[%clk 0:03:00]}  Nd7 {[%clk 0:02:51]} 8. e3 {[%clk 0:03:00]}  g6 {[%clk 0:02:51]} 9. c4 {[%clk 0:02:59]}  Bg7 {[%clk 0:02:51]} 10. Nc3 {[%clk 0:03:00]}  Ne7 {[%clk 0:02:51]} 11. b3 {[%clk 0:03:00]}  Qb4 {[%clk 0:02:38]} 12. Qd3 {[%clk 0:02:53]}  O-O {[%clk 0:02:33]} 13. Bd2 {[%clk 0:02:31]}  dxc4 {[%clk 0:02:31]} 14. bxc4 {[%clk 0:02:24]}  Qd6 {[%clk 0:02:25]} 15. Ne4 {[%clk 0:02:09]}  Qc7 {[%clk 0:02:25]} 16. c5 {[%clk 0:02:08]}  Rfd8 {[%clk 0:02:21]} 17. Qc2 {[%clk 0:02:03]}  Nf5 {[%clk 0:02:15]} 18. Rab1 {[%clk 0:02:01]}  Nf6 {[%clk 0:02:08]} 19. Nf2 {[%clk 0:01:39]}  h5 {[%clk 0:02:00]} 20. Qa4 {[%clk 0:01:35]}  Nd5 {[%clk 0:01:32]} 21. Rfe1 {[%clk 0:01:31]}  Nde7 {[%clk 0:01:23]} 22. Qa3 {[%clk 0:00:58]}  b6 {[%clk 0:01:15]} 23. Rec1 {[%clk 0:00:54]}  Qb7 {[%clk 0:01:00]} 24. cxb6 {[%clk 0:00:49]}  axb6 {[%clk 0:01:00]} 25. Qb3 {[%clk 0:00:50]}  Nd5 {[%clk 0:00:59]} 26. a4 {[%clk 0:00:47]}  Qa7 {[%clk 0:00:40]} 27. Bd1 {[%clk 0:00:43]}  c5 {[%clk 0:00:35]} 28. a5 {[%clk 0:00:37]}  cxd4 {[%clk 0:00:24]} 29. axb6 {[%clk 0:00:37]}  Qxb6 {[%clk 0:00:24]} 30. Qxb6 {[%clk 0:00:37]}  Nxb6 {[%clk 0:00:25]} 31. e4 {[%clk 0:00:37]}  Nc8 {[%clk 0:00:07]} 32. exf5 {[%clk 0:00:37]}  gxf5 {[%clk 0:00:08]} 33. Bf3 {[%clk 0:00:38]}  Ra2 {[%clk 0:00:07]} 34. Be1 {[%clk 0:00:36]}  Nd6 {[%clk 0:00:08]} 35. Ra1 {[%clk 0:00:34]}  Rb2 {[%clk 0:00:07]} 36. Rd1 {[%clk 0:00:33]}  Nc4 {[%clk 0:00:06]} 37. Bxh5 {[%clk 0:00:34]}  Ne3 {[%clk 0:00:06]} 38. Rd2 {[%clk 0:00:34]}  Rb3 {[%clk 0:00:06]} 39. Ra7 {[%clk 0:00:33]}  f6 {[%clk 0:00:03]} 40. Bf7+ {[%clk 0:00:29]}  Kf8 {[%clk 0:00:03]} 41. Bxe6 {[%clk 0:00:30]}  Rb1 {[%clk 0:00:03]} 42. Nd3 {[%clk 0:00:31]}  Re8 {[%clk 0:00:02]} 43. Rf7+ {[%clk 0:00:30]}  Kg8 {[%clk 0:00:01]} 44. Rb7+ {[%clk 0:00:31]}  Kf8 {[%clk 0:00:02]} 45. Rxb1 {[%clk 0:00:32]}  Rxe6 {[%clk 0:00:02]} 46. Nc5 {[%clk 0:00:31]}  Re7 {[%clk 0:00:02]} 47. Rxd4 {[%clk 0:00:31]}  Nc2 {[%clk 0:00:02]} 48. Rd8+ {[%clk 0:00:31]}  Kf7 {[%clk 0:00:02]} 49. Rd7 {[%clk 0:00:32]}  Nxe1 {[%clk 0:00:03]} 50. Rxe1 {[%clk 0:00:32]}  Rxd7 {[%clk 0:00:03]} 51. Nxd7 {[%clk 0:00:33]}  Kg6 {[%clk 0:00:03]} 52. h3 {[%clk 0:00:31]}  Bh6 {[%clk 0:00:04]} 53. Kg2 {[%clk 0:00:31]}  Kh5 {[%clk 0:00:04]} 54. Kf3 {[%clk 0:00:32]}  Bg7 {[%clk 0:00:04]} 55. g4+ {[%clk 0:00:32]}  Kh4 {[%clk 0:00:04]} 56. gxf5 {[%clk 0:00:31]}  Bh6 {[%clk 0:00:05]} 57. Nxf6 {[%clk 0:00:30]}  Bg7 {[%clk 0:00:04]} 58. Re7 {[%clk 0:00:29]}  Bh6 {[%clk 0:00:01]} 59. Rh7 {[%clk 0:00:29]}  Kxh3 {[%clk 0:00:02]} 60. Rxh6# {[%clk 0:00:29]} 1-0


[Site "https://www.chess.com"]

[Event "Titled Tuesday Blitz November 01 Late 2022"]
[White "Gareyev, Timur"]
[Black "Prydun, Andriy"]
[WhiteFideId "14200937"]
[BlackFideId "14145898"]
[WhiteElo "2552"]
[BlackElo "2163"]
[Result "1-0"]
[Round "01"]
[TimeControl "180+1"]
[Date "2022.11.02"]
[WhiteClock "0:02:02"]
[BlackClock "0:00:01"]

1. d4 {[%clk 0:02:57]}  Nf6 {[%clk 0:00:25]} 2. c4 {[%clk 0:02:56]}  c6 {[%clk 0:00:24]} 3. Bf4 {[%clk 0:02:54]}  d5 {[%clk 0:00:25]} 4. e3 {[%clk 0:02:55]}  e6 {[%clk 0:00:22]} 5. Nc3 {[%clk 0:02:54]}  Bd6 {[%clk 0:00:21]} 6. Bxd6 {[%clk 0:02:53]}  Qxd6 {[%clk 0:00:22]} 7. Nf3 {[%clk 0:02:54]}  b6 {[%clk 0:00:19]} 8. Qc2 {[%clk 0:02:53]}  Bb7 {[%clk 0:00:20]} 9. Ne5 {[%clk 0:02:52]}  Nbd7 {[%clk 0:00:20]} 10. f4 {[%clk 0:02:53]}  Rc8 {[%clk 0:00:18]} 11. O-O-O {[%clk 0:02:50]}  a6 {[%clk 0:00:03]} 12. e4 {[%clk 0:02:42]}  c5 {[%clk 0:00:03]} 13. exd5 {[%clk 0:02:35]}  exd5 {[%clk 0:00:01]} 14. Kb1 {[%clk 0:02:14]}  cxd4 {[%clk 0:00:01]} 15. Rxd4 {[%clk 0:02:13]}  Nxe5 {[%clk 0:00:01]} 16. Qe2 {[%clk 0:02:02]} 1-0


[Site "https://www.chess.com"]

[Event "Titled Tuesday Blitz November 01 Late 2022"]
[White "Gasparyan, David"]
[Black "Bjelobrk, Igor"]
[WhiteFideId "13311980"]
[BlackFideId "4300726"]
[WhiteElo "2379"]
[BlackElo "2335"]
[Result "0-1"]
[Round "01"]
[TimeControl "180+1"]
[Date "2022.11.02"]
[WhiteClock "0:00:07"]
[BlackClock "0:01:07"]

1. Nf3 {[%clk 0:02:54]}  d5 {[%clk 0:02:54]} 2. e3 {[%clk 0:02:51]}  Nf6 {[%clk 0:02:53]} 3. b3 {[%clk 0:02:49]}  g6 {[%clk 0:02:47]} 4. Bb2 {[%clk 0:02:49]}  Bg7 {[%clk 0:02:47]} 5. Be2 {[%clk 0:02:49]}  O-O {[%clk 0:02:46]} 6. O-O {[%clk 0:02:49]}  b6 {[%clk 0:02:44]} 7. d3 {[%clk 0:02:48]}  Bb7 {[%clk 0:02:44]} 8. c4 {[%clk 0:02:48]}  e6 {[%clk 0:02:43]} 9. Nbd2 {[%clk 0:02:47]}  c5 {[%clk 0:02:43]} 10. Qc2 {[%clk 0:02:47]}  Nc6 {[%clk 0:02:41]} 11. a3 {[%clk 0:02:45]}  Rc8 {[%clk 0:02:40]} 12. Rad1 {[%clk 0:02:15]}  Qe7 {[%clk 0:02:39]} 13. Rfe1 {[%clk 0:02:14]}  Rfd8 {[%clk 0:02:37]} 14. Bf1 {[%clk 0:02:13]}  e5 {[%clk 0:02:33]} 15. e4 {[%clk 0:02:13]}  d4 {[%clk 0:02:32]} 16. g3 {[%clk 0:02:12]}  a6 {[%clk 0:02:30]} 17. Bh3 {[%clk 0:02:11]}  Rc7 {[%clk 0:02:29]} 18. Nf1 {[%clk 0:02:11]}  b5 {[%clk 0:02:26]} 19. Bc1 {[%clk 0:02:09]}  bxc4 {[%clk 0:02:25]} 20. bxc4 {[%clk 0:02:08]}  Rb8 {[%clk 0:02:24]} 21. Bd2 {[%clk 0:02:07]}  Bc8 {[%clk 0:02:24]} 22. Rb1 {[%clk 0:02:06]}  Rxb1 {[%clk 0:02:22]} 23. Rxb1 {[%clk 0:02:07]}  Bxh3 {[%clk 0:02:22]} 24. Qa4 {[%clk 0:01:57]}  Bc8 {[%clk 0:02:20]} 25. Rb6 {[%clk 0:01:50]}  Qd7 {[%clk 0:02:20]} 26. Qb3 {[%clk 0:01:31]}  Ne8 {[%clk 0:02:19]} 27. h4 {[%clk 0:01:26]}  Rb7 {[%clk 0:02:16]} 28. Rxb7 {[%clk 0:01:26]}  Qxb7 {[%clk 0:02:15]} 29. Qd1 {[%clk 0:01:26]}  Nd6 {[%clk 0:02:14]} 30. N1h2 {[%clk 0:01:25]}  Bd7 {[%clk 0:02:07]} 31. h5 {[%clk 0:01:25]}  Qb2 {[%clk 0:02:04]} 32. h6 {[%clk 0:01:04]}  Bf8 {[%clk 0:02:00]} 33. Nh4 {[%clk 0:00:49]}  Qxa3 {[%clk 0:01:51]} 34. Qf3 {[%clk 0:00:49]}  Qb2 {[%clk 0:01:31]} 35. Bg5 {[%clk 0:00:41]}  Qb7 {[%clk 0:01:22]} 36. Ng4 {[%clk 0:00:30]}  Bxg4 {[%clk 0:01:22]} 37. Qxg4 {[%clk 0:00:31]}  a5 {[%clk 0:01:19]} 38. f4 {[%clk 0:00:14]}  a4 {[%clk 0:01:17]} 39. f5 {[%clk 0:00:15]}  a3 {[%clk 0:01:14]} 40. fxg6 {[%clk 0:00:15]}  fxg6 {[%clk 0:01:14]} 41. Qe6+ {[%clk 0:00:15]}  Qf7 {[%clk 0:01:14]} 42. Qg4 {[%clk 0:00:12]}  a2 {[%clk 0:01:14]} 43. Qd1 {[%clk 0:00:12]}  Nb4 {[%clk 0:01:12]} 44. Nf3 {[%clk 0:00:10]}  Qxf3 {[%clk 0:01:10]} 45. Qa4 {[%clk 0:00:07]}  Qxg3+ {[%clk 0:01:07]} 46. Kh1 {[%clk 0:00:07]}  Qxg5 {[%clk 0:01:07]} 0-1


[Site "https://www.chess.com"]

[Event "Titled Tuesday Blitz November 01 Late 2022"]
[White "Gatterer, Florian"]
[Black "Issani, Nameer"]
[WhiteFideId "811688"]
[BlackFideId "2619130"]
[WhiteElo "2218"]
[BlackElo "2629"]
[Result "0-1"]
[Round "01"]
[TimeControl "180+1"]
[Date "2022.11.02"]
[WhiteClock "0:01:04"]
[BlackClock "0:02:00"]

1. c4 {[%clk 0:03:00]}  e5 {[%clk 0:03:00]} 2. Nc3 {[%clk 0:02:59]}  Nf6 {[%clk 0:02:57]} 3. Nf3 {[%clk 0:02:58]}  Nc6 {[%clk 0:02:54]} 4. e3 {[%clk 0:02:56]}  d5 {[%clk 0:02:47]} 5. cxd5 {[%clk 0:02:55]}  Nxd5 {[%clk 0:02:47]} 6. Bb5 {[%clk 0:02:55]}  f6 {[%clk 0:02:44]} 7. Nxe5 {[%clk 0:02:30]}  fxe5 {[%clk 0:02:40]} 8. Qh5+ {[%clk 0:02:28]}  Ke7 {[%clk 0:02:36]} 9. Qxe5+ {[%clk 0:02:14]}  Nxe5 {[%clk 0:02:31]} 10. O-O {[%clk 0:02:01]}  Nxc3 {[%clk 0:02:26]} 11. bxc3 {[%clk 0:02:01]}  Qd5 {[%clk 0:02:25]} 12. Be2 {[%clk 0:01:57]}  Bg4 {[%clk 0:02:24]} 13. f3 {[%clk 0:01:57]}  Be6 {[%clk 0:02:23]} 14. d4 {[%clk 0:01:56]}  Ng6 {[%clk 0:02:20]} 15. e4 {[%clk 0:01:56]}  Qh5 {[%clk 0:02:18]} 16. d5 {[%clk 0:01:54]}  Bd7 {[%clk 0:02:17]} 17. Be3 {[%clk 0:01:47]}  Kd8 {[%clk 0:02:17]} 18. Rae1 {[%clk 0:01:46]}  Bd6 {[%clk 0:02:17]} 19. f4 {[%clk 0:01:46]}  Qh4 {[%clk 0:02:15]} 20. g3 {[%clk 0:01:44]}  Qh3 {[%clk 0:02:10]} 21. e5 {[%clk 0:01:42]}  Nh4 {[%clk 0:02:08]} 22. Rf2 {[%clk 0:01:37]}  Nf5 {[%clk 0:02:08]} 23. Bf1 {[%clk 0:01:22]}  Qh6 {[%clk 0:02:03]} 24. exd6 {[%clk 0:01:10]}  Nxe3 {[%clk 0:02:02]} 25. Rxe3 {[%clk 0:01:11]}  Qxd6 {[%clk 0:02:01]} 26. c4 {[%clk 0:01:10]}  Qc5 {[%clk 0:02:01]} 27. Ree2 {[%clk 0:01:08]}  Re8 {[%clk 0:02:01]} 28. Rd2 {[%clk 0:01:07]}  Re3 {[%clk 0:02:00]} 29. a4 {[%clk 0:01:06]}  Re1 {[%clk 0:02:00]} 30. a5 {[%clk 0:01:06]}  Bh3 {[%clk 0:02:00]} 31. a6 {[%clk 0:01:04]}  Rxf1# {[%clk 0:02:00]} 0-1


[Site "https://www.chess.com"]